[Event "44th Chess Olympiad Open 2022"]
[Site "Chennai"]
[Date "2022.07.30"]
[Round "2.17"]
[White "Georgiev, Todor"]
[Black "Bosiocic, Marin"]
[Result "1-0"]
[WhiteElo "2272"]
[BlackElo "2549"]
[Annotator "ChessBase"]
[PlyCount "103"]
[EventDate "2022.??.??"]
[TimeControl "60"]

1. d4 {[%emt 0:00:27]} Nf6 {[%emt 0:00:09]} 2. c4 {[%emt 0:01:17]} e6 {[%emt 0:
00:00]} 3. Nf3 {[%emt 0:00:45]} b6 {[%emt 0:00:10]} 4. g3 {[%emt 0:02:24]} Ba6
{[%emt 0:00:10]} 5. Qc2 {[%emt 0:01:36]} c5 {[%emt 0:01:48]} 6. dxc5 {[%emt 0:
00:00]} bxc5 {[%emt 0:01:31]} 7. Bg2 {[%emt 0:02:35]} Nc6 {[%emt 0:00:53]} 8.
O-O {[%emt 0:08:17]} Be7 {[%emt 0:01:46]} 9. b3 {[%emt 0:07:53]} d5 {[%emt 0:
00:00]} 10. Bb2 {[%emt 0:17:36]} d4 {[%emt 0:00:45]} 11. a3 {[%emt 0:07:28]}
Rc8 {[%emt 0:03:35]} 12. b4 {[%emt 0:06:52]} cxb4 {[%emt 0:02:34]} 13. Qa4 {
[%emt 0:04:28]} Qa5 {[%emt 0:04:27]} 14. Qxa5 {[%emt 0:04:55]} Nxa5 {[%emt 0:
00:00]} 15. axb4 {[%emt 0:00:05]} Bxb4 {[%emt 0:00:27]} 16. Nxd4 {[%emt 0:00:
00]} Bxc4 {[%emt 0:01:03]} 17. Ra4 {[%emt 0:01:29]} e5 {[%emt 0:07:39]} 18. Nf5
{[%emt 0:03:11]} Bxe2 {[%emt 0:00:39]} 19. Rxb4 {[%emt 0:01:35]} Bxf1 {[%emt 0:
00:00]} 20. Kxf1 {[%emt 0:00:42]} Kd7 {[%emt 0:01:17]} 21. Ra4 {[%emt 0:06:09]}
Nc4 {[%emt 0:04:23]} 22. Rxa7+ {[%emt 0:01:03]} Rc7 {[%emt 0:00:04]} 23. Rxc7+
{[%emt 0:00:17]} Kxc7 {[%emt 0:00:22]} 24. Bc3 {[%emt 0:00:34]} g6 {[%emt 0:00:
00]} 25. Nh6 {[%emt 0:01:29]} Rd8 {[%emt 0:06:23]} 26. Ke2 {[%emt 0:00:25]} Rd7
{[%emt 0:04:44]} 27. Nd2 {[%emt 0:01:25]} Nd6 {[%emt 0:00:45]} 28. Bh3 {
[%emt 0:01:42]} Re7 {[%emt 0:00:24]} 29. Ba5+ {[%emt 0:00:33]} Kc6 {[%emt 0:00:
00]} 30. Bd8 {[%emt 0:00:14]} Ra7 {[%emt 0:01:44]} 31. Bxf6 {[%emt 0:00:07]}
Nb5 {[%emt 0:00:13]} 32. Nf3 {[%emt 0:01:04]} Nc3+ {[%emt 0:01:08]} 33. Kd3 {
[%emt 0:01:03]} e4+ {[%emt 0:01:15]} 34. Kxc3 {[%emt 0:00:14]} exf3 {[%emt 0:
00:00]} 35. Bg4 {[%emt 0:00:28]} Kd5 {[%emt 0:00:54]} 36. Kd3 {[%emt 0:00:15]}
Ra3+ {[%emt 0:00:43]} 37. Bc3 {[%emt 0:00:23]} f5 {[%emt 0:00:12]} 38. Bxf3+ {
[%emt 0:00:15]} Ke6 {[%emt 0:00:08]} 39. h4 {[%emt 0:00:42]} Ra2 {[%emt 0:00:
00]} 40. Ke3 {[%emt 0:00:29]} Ra3 {[%emt 0:00:12]} 41. Kd4 {[%emt 0:30:44]}
Ra4+ {[%emt 0:30:55]} 42. Kc5 {[%emt 0:00:16]} Ra3 {[%emt 0:00:32]} 43. Bd5+ {
[%emt 0:00:28]} Kd7 {[%emt 0:00:07]} 44. Kb4 {[%emt 0:01:02]} Ra6 {[%emt 0:00:
00]} 45. Nf7 {[%emt 0:00:40]} Ke7 {[%emt 0:00:10]} 46. Ne5 {[%emt 0:00:00]}
Rb6+ {[%emt 0:00:00]} 47. Kc4 {[%emt 0:00:00]} Rb1 {[%emt 0:00:00]} 48. Bg8 {
[%emt 0:00:00]} Rf1 {[%emt 0:00:00]} 49. Bd4 {[%emt 0:00:00]} Rc1+ {[%emt 0:00:
00]} 50. Kd3 {[%emt 0:00:00]} Rd1+ {[%emt 0:00:00]} 51. Ke3 {[%emt 0:00:00]}
Re1+ {[%emt 0:00:00]} 52. Kd2 {[%emt 0:00:00]} 1-0

[Event "44th Chess Olympiad Open 2022"]
[Site "Chennai"]
[Date "2022.07.30"]
[Round "2.18"]
[White "Nguyen, Thai Dai Van"]
[Black "Reimanis, Ritvars"]
[Result "1-0"]
[WhiteElo "2629"]
[BlackElo "2377"]
[Annotator "TA"]
[PlyCount "93"]
[EventDate "2022.??.??"]
[TimeControl "60"]

{[%evp 12,93,44,49,79,62,80,70,78,84,88,64,74,69,85,89,98,89,101,102,119,124,
102,98,105,115,179,177,173,179,177,177,208,122,132,109,243,273,263,239,269,271,
262,254,277,281,273,280,281,268,264,273,276,261,266,263,275,268,262,262,392,
362,424,381,469,466,457,431,599,556,622,615,616,583,721,692,1918,1895,1930,
1737,29940,11185,4731,2949]} 1. c4 {[%emt 0:00:07] ChessBase II} c5 {[%emt 0:
00:00]} 2. Nf3 {[%emt 0:00:17]} Nc6 {[%emt 0:00:06]} 3. Nc3 {[%emt 0:00:12]} g6
{[%emt 0:01:13]} 4. e3 {[%emt 0:01:06]} d6 {[%emt 0:16:48]} 5. d4 {[%emt 0:00:
00]} Bg4 {[%emt 0:00:43]} 6. Be2 {[%emt 0:12:24]} Bg7 {[%emt 0:13:37]} 7. d5 {
[%emt 0:01:18]} Nb8 {[%emt 0:07:00] A35: Symmetrical English: 2 Nc3 Nc6 3 Nf3.}
8. O-O {[%emt 0:03:22]} Nf6 {[%emt 0:00:54]} 9. e4 {[%emt 0:03:11]} O-O {
[%emt 0:01:39] White is slightly better.} 10. h3 {[%emt 0:05:45]} Bxf3 {
[%emt 0:00:06]} 11. Bxf3 {[%emt 0:00:06]} (11. gxf3 Qc8 $14) 11... Nbd7 {
[%emt 0:00:59]} 12. Be2 {[%emt 0:02:48]} Ne8 {[%emt 0:00:23]} 13. Be3 {[%emt 0:
00:00]} Rb8 {[%emt 0:01:36]} 14. Qd2 {[%emt 0:04:52]} a6 {[%emt 0:02:56] [#]}
15. a4 $146 {[%emt 0:00:28][%cal Ya2a4,Ya4a5]} ({Predecessor:} 15. Bh6 Bxh6 16.
Qxh6 e5 17. dxe6 fxe6 18. f4 Qe7 19. Rad1 Ng7 20. Rf3 Rbd8 21. Rfd3 {1-0 (42)
Lukic,A-Trifunovic,P Kragujevac 1959 EXT 1998 [ChessBase II]}) 15... e5 {
[%emt 0:06:37]} 16. dxe6 {[%emt 0:11:05] White is more active.} fxe6 {[%emt 0:
00:05]} 17. f4 {[%emt 0:00:08] Against Ne5} Qe7 {[%emt 0:02:42]} 18. Rad1 {
[%emt 0:00:30][%cal Ye4e5]} Nb6 {[%emt 0:00:30]} (18... Rd8 $16) 19. a5 $18 {
[%emt 0:00:30]} Nc8 {[%emt 0:06:01]} 20. e5 {[%emt 0:16:51]} dxe5 {[%emt 0:06:
45]} 21. Ne4 {[%emt 0:02:06]} Nf6 {[%emt 0:00:39]} 22. Nxf6+ {[%emt 0:07:16]} (
{Don't take} 22. Bxc5 $6 Nxe4 23. Bxe7 Nxd2 24. Bxf8 Nxf1 25. Bxg7 Kxg7 $16) (
22. Nxc5 $18 exf4 23. Rxf4) 22... Rxf6 $16 {[%emt 0:04:52]} 23. Qd8+ {[%emt 0:
02:39]} Qxd8 {[%emt 0:03:18] This move loses the game for Black.} (23... Rf8
$16 24. Qxe7 Nxe7) 24. Rxd8+ $18 {[%emt 0:00:05]} Rf8 {[%emt 0:00:00]} 25.
Rxf8+ {[%emt 0:00:21]} Bxf8 {[%emt 0:03:08] [#]} 26. Bg4 $1 {[%emt 0:00:00]} ({
Don't do} 26. fxe5 $6 Na7 $16) 26... e4 {[%emt 0:04:42]} 27. Bxe6+ {[%emt 0:00:
05]} Kg7 {[%emt 0:00:01]} 28. Rd1 {[%emt 0:04:14] aiming for Rd8.} Ne7 {
[%emt 0:06:34]} 29. Bxc5 {[%emt 0:01:27]} Kf6 {[%emt 0:00:01]} 30. Bd6 {
[%emt 0:01:29] A strong pair of Bishops.} Ra8 {[%emt 0:00:14]} 31. Bd5 {
[%emt 0:03:53]} Nxd5 {[%emt 0:03:34]} 32. Rxd5 {[%emt 0:00:06]} Bxd6 {[%emt 0:
00:00]} 33. Rxd6+ {[%emt 0:00:37] Endgame KR-KR} Kf5 {[%emt 0:00:00] [#]} 34.
g3 {[%emt 0:00:07] Hoping for Kf2.} e3 {[%emt 0:00:01]} 35. Kf1 {[%emt 0:00:08]
} h5 {[%emt 0:00:33]} (35... Ke4 {was worth a try.} 36. Ke2 Rc8 37. Re6+ Kd4)
36. Rd4 {[%emt 0:03:32]} g5 {[%emt 0:06:07]} 37. Ke2 {[%emt 0:00:00]} gxf4 {
[%emt 0:01:00]} 38. Rxf4+ {[%emt 0:00:07]} Ke5 {[%emt 0:00:15]} 39. Rh4 {
[%emt 0:00:21]} Rg8 {[%emt 0:00:11]} 40. Rxh5+ {[%emt 0:00:13]} Kd4 {[%emt 0:
00:07]} 41. Rh4+ {[%emt 0:30:12]} Kc5 {[%emt 0:30:01]} 42. Rg4 {[%emt 0:00:32]}
Re8 {[%emt 0:00:55]} 43. h4 {[%emt 0:00:05][%cal Yh3h4,Yh4h5,Yh5h6]} Kb4 {
[%emt 0:00:12]} 44. h5 {[%emt 0:00:04]} Kxa5 {[%emt 0:00:00]} 45. h6 {[%emt 0:
00:00]} Rh8 {[%emt 0:00:00]} 46. Rh4 {[%emt 0:00:00] White wants to mate with
g4.} Kb4 {[%emt 0:00:00]} 47. g4 {[%emt 0:00:00] Weighted Error Value: White=0.
05 (flawless) /Black=0.50} 1-0

[Event "44th Chess Olympiad Open 2022"]
[Site "Chennai"]
[Date "2022.07.30"]
[Round "2.18"]
[White "Michalik, Peter"]
[Black "Ungurs, Edgars"]
[Result "1-0"]
[WhiteElo "2559"]
[BlackElo "2206"]
[Annotator "TA"]
[PlyCount "49"]
[EventDate "2022.??.??"]
[TimeControl "60"]

{[%evp 9,49,2,14,0,20,5,15,18,15,8,31,14,12,12,17,26,14,10,27,31,31,25,33,29,
30,25,38,38,38,15,38,23,55,29,105,95,112,97,103,30,107,81]} 1. e4 {[%emt 0:00:
00]} c6 {[%emt 0:00:18]} 2. Nf3 {[%emt 0:01:04]} d5 {[%emt 0:00:16]} 3. d3 {
[%emt 0:00:04]} dxe4 {[%emt 0:02:11]} 4. dxe4 {[%emt 0:00:05]} Qxd1+ {[%emt 0:
00:00]} 5. Kxd1 {[%emt 0:00:03]} Nf6 {[%emt 0:00:21]} 6. Nbd2 {[%emt 0:00:16]
[%cal Yb1d2,Yd2c4,Yc4e5] B10: Caro-Kann: 2 d3 and 2 c4.} g6 {[%emt 0:00:00] 6..
.g6 is better than 6...Bg4.} 7. Ne5 {[%emt 0:02:54]} Bh6 {[%emt 0:00:00]} 8. f3
{[%emt 0:01:44] The position is equal.} Be6 {[%emt 0:01:24] [#]} 9. Bc4 $146 {
[%emt 0:11:33]} ({Predecessor:} 9. Ndc4 Bxc1 10. Kxc1 Nbd7 11. a4 a5 12. b3
Nxe5 13. Nxe5 Nd7 14. Nd3 f6 15. Kb2 {0-1 (40) Sanal,V (2601)-Grischuk, A 
(2764) Chess.com INT 2022}) 9... Bxc4 {[%emt 0:03:37]} 10. Ndxc4 {[%emt 0:00:
00]} Bxc1 {[%emt 0:00:29]} 11. Kxc1 {[%emt 0:00:03]} Nbd7 {[%emt 0:13:27]} 12.
Rd1 {[%emt 0:00:51]} Nxe5 {[%emt 0:08:26]} 13. Nxe5 {[%emt 0:00:05]} O-O {
[%emt 0:02:20]} 14. a4 {[%emt 0:02:37]} Rfd8 {[%emt 0:15:35]} 15. Ra3 {[%emt 0:
00:00]} Rxd1+ {[%emt 0:08:10]} 16. Kxd1 $11 {[%emt 0:00:03] Endgame Rb3 is the
strong threat. KRN-KRN} Rd8+ {[%emt 0:00:23]} 17. Ke2 {[%emt 0:00:00] Strongly
threatening Rb3.} Ne8 {[%emt 0:01:55]} 18. Nc4 {[%emt 0:07:18]} f6 {[%emt 0:09:
13]} 19. Rb3 {[%emt 0:11:17]} Rd7 {[%emt 0:05:46]} 20. e5 {[%emt 0:00:00]} Rd4
{[%emt 0:09:14]} 21. Nd2 {[%emt 0:03:09]} (21. Na5 $5 {[%cal Rb3b7]}) 21...
Rxa4 {[%emt 0:09:31]} (21... b6 $11) 22. Rxb7 $16 {[%emt 0:02:41]} Kf7 {
[%emt 0:00:27]} 23. Ne4 {[%emt 0:00:24]} Ra5 {[%emt 0:02:56]} 24. f4 {[%emt 0:
00:00] White is more active.} ({Better is} 24. exf6 $16 Nxf6 25. Nd6+ Ke6 26.
Nc8) 24... h6 {[%emt 0:01:00]} (24... Rb5 $11 {keeps the balance.} 25. Rxa7
Rxb2) 25. Nd6+ {[%emt 0:03:40] Weighted Error Value: White=0.12 (very precise)
/Black=0.17 (very precise)} 1-0

[Event "44th Chess Olympiad Open 2022"]
[Site "Chennai"]
[Date "2022.07.30"]
[Round "2.18"]
[White "Kantans, Toms"]
[Black "Navara, David"]
[Result "0-1"]
[WhiteElo "2486"]
[BlackElo "2688"]
[Annotator "TA"]
[PlyCount "50"]
[EventDate "2022.??.??"]
[TimeControl "60"]

{[%evp 14,50,18,39,37,31,39,31,50,25,32,23,41,0,0,0,0,0,0,0,0,0,0,0,0,-39,-41,
-46,-62,-383,-381,-381,-366,-334,-339,-323,-337,-708,-679]} 1. e4 {[%emt 0:00:
00]} c6 {[%emt 0:00:03]} 2. d4 {[%emt 0:00:08]} d5 {[%emt 0:00:03]} 3. Nc3 {
[%emt 0:00:09]} dxe4 {[%emt 0:00:05]} 4. Nxe4 {[%emt 0:00:09]} Nf6 {[%emt 0:00:
00]} 5. Nxf6+ {[%emt 0:01:20]} exf6 {[%emt 0:00:11]} 6. c3 {[%emt 0:01:20]} Bd6
{[%emt 0:00:11]} 7. Bd3 {[%emt 0:00:07]} O-O {[%emt 0:00:06]} 8. Qc2 {[%emt 0:
00:00]} Re8+ {[%emt 0:00:27] B15: Caro-Kann: 3 Nc3:3...g6 and 3...dxe4 4 Nxe4
Nf6 5 Nxf6+ exf6.} 9. Ne2 {[%emt 0:00:09][%cal Yg1e2,Ye2g3,Yg3f5,Yf5d6]} h5 {
[%emt 0:00:08]} 10. O-O {[%emt 0:00:41]} h4 {[%emt 0:03:19] White is slightly
better.} 11. Bf4 {[%emt 0:01:12]} Na6 {[%emt 0:04:55]} (11... Rxe2 $2 12. Qxe2
Bxf4 13. Qe4 $18) 12. Rae1 {[%emt 0:08:55]} Nc7 {[%emt 0:01:02]} (12... Rxe2 $2
13. Qxe2 Bf5 14. Bxf5 $18) 13. Qd2 {[%emt 0:01:22] [#]} h3 $146 {[%emt 0:11:10]
} ({Predecessor:} 13... Be6 14. b3 a5 15. Bxd6 Qxd6 16. Qf4 Qxf4 17. Nxf4 a4
18. Nxe6 Rxe6 19. Bc4 Nd5 20. Bxd5 cxd5 21. bxa4 Rxa4 {½-½ (70) Arjun,K 
(2445)-Buhmann,R (2581) Karlsruhe 2019}) 14. Ng3 {[%emt 0:09:10]} hxg2 {
[%emt 0:02:13]} 15. Rxe8+ {[%emt 0:00:34]} Nxe8 {[%emt 0:04:43]} 16. Re1 {
[%emt 0:00:08][%cal Ye1e8]} Be6 {[%emt 0:03:19]} 17. Bc2 {[%emt 0:18:55]} Qd7 {
[%emt 0:19:58]} 18. h4 {[%emt 0:12:56]} Bd5 {[%emt 0:07:29] And now ...Qg4
would win.} (18... Bxa2 19. b3 $16) 19. Nf5 {[%emt 0:24:31]} g6 {[%emt 0:00:42]
} (19... Bxf4 20. Qxf4 Be6 21. h5 $11) 20. Nxd6 {[%emt 0:13:55]} Qh3 {[%emt 0:
00:00][%csl Gd5,Gg2][%cal Rh3h1]} ({Reject} 20... Nxd6 $6 21. Bxd6 Qxd6 22. Qe3
$17) 21. f3 $2 {[%emt 0:02:00] [#] Loses the game.} (21. Bh2 $15 Nxd6 22. Qf4)
21... Qh1+ $1 $19 {[%emt 0:01:13]} ({Not} 21... Nxd6 22. Qxg2 (22. Bxd6 $2 Qh1+
23. Kf2 g1=R $19) 22... Qxg2+ 23. Kxg2 $14) 22. Kf2 {[%emt 0:00:00] Ne4 is the
strong threat.} g1=B+ {[%emt 0:04:30]} 23. Rxg1 {[%emt 0:00:00]} Qxf3+ {
[%emt 0:00:06]} 24. Ke1 {[%emt 0:00:05]} Nxd6 {[%emt 0:00:05] Dancing on a
razor blade.} 25. Qh2 $2 {[%emt 0:02:32] [#]} (25. Bxd6 Re8+ 26. Be5) 25... Nc4
{[%emt 0:03:38] Weighted Error Value: White=0.62/Black=0.03 (flawless)} 0-1

[Event "44th Chess Olympiad Open 2022"]
[Site "Chennai"]
[Date "2022.07.30"]
[Round "2.18"]
[White "Golubovskis, Maksims"]
[Black "Hracek, Zbynek"]
[Result "0-1"]
[WhiteElo "2219"]
[BlackElo "2555"]
[Annotator "ChessBase"]
[PlyCount "64"]
[EventDate "2022.??.??"]
[TimeControl "60"]

1. e4 {[%emt 0:00:03]} c5 {[%emt 0:00:04]} 2. Nf3 {[%emt 0:00:14]} d6 {[%emt 0:
00:00]} 3. d4 {[%emt 0:00:18]} cxd4 {[%emt 0:00:05]} 4. Nxd4 {[%emt 0:00:11]}
Nf6 {[%emt 0:00:04]} 5. Nc3 {[%emt 0:00:15]} a6 {[%emt 0:00:05]} 6. h3 {
[%emt 0:00:13]} e5 {[%emt 0:00:24]} 7. Nde2 {[%emt 0:00:13]} h5 {[%emt 0:00:08]
} 8. g3 {[%emt 0:00:09]} Be7 {[%emt 0:00:22]} 9. Bg2 {[%emt 0:00:20]} b5 {
[%emt 0:00:23]} 10. a4 {[%emt 0:00:31]} b4 {[%emt 0:00:29]} 11. Nd5 {[%emt 0:
00:00]} Nxd5 {[%emt 0:00:07]} 12. Qxd5 {[%emt 0:01:13]} Ra7 {[%emt 0:00:11]}
13. Be3 {[%emt 0:00:58]} Rb7 {[%emt 0:02:21]} 14. O-O {[%emt 0:04:47]} Nd7 {
[%emt 0:00:59]} 15. f4 {[%emt 0:15:55]} O-O {[%emt 0:01:10]} 16. Qd2 {[%emt 0:
00:00]} a5 {[%emt 0:06:48]} 17. f5 {[%emt 0:09:03]} Nf6 {[%emt 0:09:32]} 18. b3
{[%emt 0:22:08]} Rd7 {[%emt 0:04:54]} 19. Qd3 {[%emt 0:09:55]} Bb7 {[%emt 0:00:
00]} 20. Bg5 {[%emt 0:01:31]} d5 {[%emt 0:05:03]} 21. exd5 {[%emt 0:01:28]}
Bxd5 {[%emt 0:06:09]} 22. Bxd5 {[%emt 0:01:27]} Nxd5 {[%emt 0:06:17]} 23. Bxe7
{[%emt 0:01:24]} Qxe7 {[%emt 0:02:24]} 24. Kh1 {[%emt 0:06:44]} Rc8 {[%emt 0:
00:00]} 25. Rac1 {[%emt 0:02:09]} Nf6 {[%emt 0:08:27]} 26. Qe3 {[%emt 0:00:42]}
Rcd8 {[%emt 0:07:54]} 27. Rfe1 {[%emt 0:03:26]} Rd2 {[%emt 0:00:20]} 28. Ng1 {
[%emt 0:00:25]} Qb7+ {[%emt 0:05:25]} 29. Qf3 {[%emt 0:00:40]} e4 {[%emt 0:00:
00]} 30. Qe3 {[%emt 0:00:18]} Qc8 {[%emt 0:00:55]} 31. c3 {[%emt 0:01:13]} R8d3
{[%emt 0:04:50]} 32. cxb4 {[%emt 0:01:47]} Qxc1 {[%emt 0:00:11]} 0-1

[Event "44th Chess Olympiad Open 2022"]
[Site "Chennai"]
[Date "2022.07.30"]
[Round "2.19"]
[White "Banusz, Tamas"]
[Black "Murshed, Niaz"]
[Result "1-0"]
[WhiteElo "2611"]
[BlackElo "2413"]
[Annotator "TA"]
[PlyCount "103"]
[EventDate "2022.??.??"]
[TimeControl "60"]

{[%evp 13,103,39,37,35,47,56,45,50,55,50,42,49,50,43,54,52,54,40,39,48,39,40,
67,65,64,69,78,62,63,66,89,39,45,37,23,35,39,44,45,50,52,46,131,129,129,132,
135,139,129,147,132,133,135,125,197,192,187,182,153,145,145,141,147,158,224,
233,225,231,307,308,321,301,320,308,363,345,345,341,358,375,380,375,353,364,
561,537,619,613,708,682,671,649]} 1. Nf3 {[%emt 0:00:04]} d5 {[%emt 0:00:44]}
2. g3 {[%emt 0:00:07]} Nf6 {[%emt 0:00:34]} 3. Bg2 {[%emt 0:00:07]} Nc6 {
[%emt 0:00:27]} 4. d4 {[%emt 0:00:18]} Bf5 {[%emt 0:00:05]} 5. O-O {[%emt 0:00:
00]} e6 {[%emt 0:00:05]} 6. c4 {[%emt 0:00:53]} Be7 {[%emt 0:01:57]} 7. Nc3 {
[%emt 0:00:47]} Ne4 {[%emt 0:04:54]} 8. Nd2 $5 {[%emt 0:02:01][%cal Rd2e4]
Exploring less charted territory. D02:1 d4 d5 2 Nf3 sidelines, including 2...
Nf6 3 g3 and 2...Nf6 3 Bf4.} Nxd2 {[%emt 0:05:52]} 9. Bxd2 {[%emt 0:03:56]
[%cal Rc4d5]} dxc4 {[%emt 0:00:33]} 10. e4 {[%emt 0:06:21] White is slightly
better.} Bg6 {[%emt 0:00:08] [#]} 11. d5 $146 {[%emt 0:01:06]} ({Predecessor:} 
11. Be3 O-O 12. f4 f6 13. Rf2 a6 14. Rd2 Qe8 15. g4 e5 16. dxe5 fxe5 17. f5 {
1-0 (35) Szabo,G (2534)-Tazbir,M (2527) Bucharest 2011}) 11... exd5 {[%emt 0:
06:41]} 12. Nxd5 {[%emt 0:01:46]} O-O {[%emt 0:06:21]} 13. Bc3 {[%emt 0:04:43]}
f6 {[%emt 0:15:06]} 14. Qa4 {[%emt 0:09:36]} Bf7 {[%emt 0:00:00]} 15. Rad1 {
[%emt 0:03:20][%cal Yd5f6,Ya1d1,Yd1d5,Yd5d2] Black must now prevent Nxf6+!} Bd6
{[%emt 0:02:33]} 16. Qxc4 {[%emt 0:08:17]} Ne5 {[%emt 0:10:51]} 17. Qe2 {
[%emt 0:05:59]} Bxd5 {[%emt 0:01:13]} 18. Rxd5 {[%emt 0:03:06]} c6 {[%emt 0:01:
18]} 19. Rd2 {[%emt 0:01:09] Rfd1 is the strong threat.} Qe7 {[%emt 0:00:49]}
20. f4 {[%emt 0:02:40]} Nf7 {[%emt 0:01:08]} 21. Rfd1 {[%emt 0:01:04][%cal
Yd2d6] Hoping for Rxd6!} Rfd8 {[%emt 0:07:43]} 22. a3 {[%emt 0:02:03] Prevents
Bb4.} (22. Bh3 $16) 22... Bc5+ $14 {[%emt 0:08:04]} 23. Kf1 {[%emt 0:01:57]}
Rxd2 {[%emt 0:01:10]} 24. Rxd2 {[%emt 0:00:19]} Qe6 {[%emt 0:00:26] Against Bh3
} 25. Bf3 {[%emt 0:05:30][%cal Yg2f3,Yf3g4,Yg4f5]} Re8 {[%emt 0:03:02]} 26. Kg2
{[%emt 0:03:21][%cal Ye4e5]} Nd6 {[%emt 0:09:57][%cal Rd6e4]} 27. e5 {[%emt 0:
06:53]} Nb5 {[%emt 0:01:40]} ({Better is} 27... fxe5 $1 $14 28. Bg4 (28. Qxe5
Qxe5 29. Bxe5 Nc4 $11) (28. fxe5 Nc4 $14) (28. Bxe5 Nc4 $11) 28... Qb3) 28. Bg4
$16 {[%emt 0:06:13] This bishop pair is nice.} f5 {[%emt 0:00:08] [#]} 29. Bxf5
{[%emt 0:01:24]} Qxf5 {[%emt 0:00:07]} 30. Qc4+ {[%emt 0:00:04]} Kh8 {[%emt 0:
00:16] And now ...Bb6 would win.} 31. Qxc5 {[%emt 0:00:24][%cal Yc5e7]} Qe4+ {
[%emt 0:00:09]} 32. Kf2 {[%emt 0:02:42][%cal Yc5e7,Yg2f2,Yf2f3,Yf3e2,Ye2d1,
Yd1c2] aiming for Qe7!} Qh1 {[%emt 0:00:33] [#]} 33. h4 $40 {[%emt 0:01:31]
White is out for blood.} Qh2+ {[%emt 0:00:10]} (33... Nc7 $16) 34. Kf3 $18 {
[%emt 0:00:00]} Qh1+ {[%emt 0:00:09] [#]} 35. Ke2 $1 {[%emt 0:02:19]} ({Not} 
35. Kg4 $2 h5+ 36. Kf5 (36. Kg5 $2 {leads to mate.} Qh3) 36... b6 $19) 35...
Nc7 {[%emt 0:00:00]} 36. Qe3 {[%emt 0:03:29]} Qg2+ {[%emt 0:02:10]} 37. Kd1 {
[%emt 0:03:48]} Nd5 {[%emt 0:00:22]} 38. Qd3 {[%emt 0:00:22]} (38. Rxg2 $2 {
too greedy.} Nxe3+ 39. Ke2 Nxg2 $19) 38... Qg1+ {[%emt 0:01:22]} (38... Qh3 $16
39. Kc1 g6) 39. Kc2 {[%emt 0:00:22]} Qc5 {[%emt 0:02:32]} 40. Qd4 {[%emt 0:02:
18]} Qb6 {[%emt 0:00:15]} 41. Qxb6 {[%emt 0:08:46]} axb6 {[%emt 0:00:03]
Endgame KRB-KRN} 42. h5 {[%emt 0:01:28]} Kg8 {[%emt 0:00:14]} 43. Bd4 {[%emt 0:
00:00]} g6 {[%emt 0:02:01]} 44. hxg6 {[%emt 0:02:43]} hxg6 {[%emt 0:00:06]} 45.
Kd3 {[%emt 0:00:13]} b5 {[%emt 0:03:47]} 46. Ke4 {[%emt 0:01:53]} Nf6+ {
[%emt 0:00:35]} 47. Kf3 {[%emt 0:00:12]} Nd5 {[%emt 0:00:03]} 48. Kg4 {[%emt 0:
00:00]} Rd8 {[%emt 0:01:33]} (48... Rc8 $142 49. e6 Re8) 49. Kg5 {[%emt 0:00:
00] White is clearly winning.} Kf7 {[%emt 0:00:41]} 50. Rh2 {[%emt 0:01:57]} b6
{[%emt 0:02:11]} 51. Rh7+ {[%emt 0:00:55]} Ke6 {[%emt 0:00:07]} 52. Rg7 {
[%emt 0:01:51] Weighted Error Value: White=0.03 (flawless) /Black=0.19 (very
precise)} 1-0

[Event "44th Chess Olympiad Open 2022"]
[Site "Chennai"]
[Date "2022.07.30"]
[Round "2.19"]
[White "Erdos, Viktor"]
[Black "Ungurs, Edgars"]
[Result "1-0"]
[WhiteElo "2586"]
[BlackElo "2206"]
[Annotator "TA"]
[PlyCount "49"]
[EventDate "2022.??.??"]
[TimeControl "60"]

{[%evp 9,49,-7,0,-1,24,8,12,19,18,6,28,16,19,18,18,17,21,8,29,33,33,29,30,21,
30,29,35,29,34,14,27,27,60,38,109,111,106,107,104,36,95,80]} 1. e4 {[%emt 0:00:
00]} c6 {[%emt 0:00:18]} 2. Nf3 {[%emt 0:01:04]} d5 {[%emt 0:00:16]} 3. d3 {
[%emt 0:00:04]} dxe4 {[%emt 0:02:11]} 4. dxe4 {[%emt 0:00:05]} Qxd1+ {[%emt 0:
00:00]} 5. Kxd1 {[%emt 0:00:03]} Nf6 {[%emt 0:00:21]} 6. Nbd2 {[%emt 0:00:16]
[%cal Yb1d2,Yd2c4,Yc4e5] B10: Caro-Kann: 2 d3 and 2 c4.} g6 {[%emt 0:00:00] 6..
.g6 scores better than 6...Bg4.} 7. Ne5 {[%emt 0:02:54]} Bh6 {[%emt 0:03:53]}
8. f3 {[%emt 0:01:44] The position is equal.} Be6 {[%emt 0:00:00] [#]} 9. Bc4
$146 {[%emt 0:11:33]} ({Predecessor:} 9. Ndc4 Bxc1 10. Kxc1 Nbd7 11. a4 a5 12.
b3 Nxe5 13. Nxe5 Nd7 14. Nd3 f6 15. Kb2 {0-1 (40) Sanal,V (2601)-Grischuk,A 
(2764) Chess.com INT 2022}) 9... Bxc4 {[%emt 0:03:37]} 10. Ndxc4 {[%emt 0:00:
10]} Bxc1 {[%emt 0:00:29]} 11. Kxc1 {[%emt 0:00:03]} Nbd7 {[%emt 0:13:27]} 12.
Rd1 {[%emt 0:00:51]} Nxe5 {[%emt 0:08:26]} 13. Nxe5 {[%emt 0:00:05]} O-O {
[%emt 0:02:20]} 14. a4 {[%emt 0:02:37]} Rfd8 {[%emt 0:00:00]} 15. Ra3 {[%emt 0:
00:46]} Rxd1+ {[%emt 0:08:10]} 16. Kxd1 $11 {[%emt 0:00:00] Endgame Strongly
threatening Rb3. KRN-KRN} Rd8+ {[%emt 0:00:23]} 17. Ke2 {[%emt 0:01:05] Black
must now prevent Rb3.} Ne8 {[%emt 0:01:55]} 18. Nc4 {[%emt 0:07:18]} f6 {
[%emt 0:09:13]} 19. Rb3 {[%emt 0:11:17]} Rd7 {[%emt 0:00:00]} 20. e5 {[%emt 0:
00:42]} Rd4 {[%emt 0:09:14]} 21. Nd2 {[%emt 0:03:09]} Rxa4 {[%emt 0:09:31]} (
21... b6 $14) 22. Rxb7 $16 {[%emt 0:02:41]} Kf7 {[%emt 0:00:27]} 23. Ne4 {
[%emt 0:00:24]} Ra5 {[%emt 0:02:56]} 24. f4 {[%emt 0:00:00] White is more
active.} (24. exf6 $16 Nxf6 25. Nd6+ Ke6 26. Nc8) 24... h6 {[%emt 0:01:00]} ({
Black should play} 24... fxe5 $14 25. Ng5+ Kf6) 25. Nd6+ {[%emt 0:03:40]
Weighted Error Value: White=0.10 (very precise) /Black=0.14 (very precise)} 1-0